bitfinex-derivatives/quotes_SOLF0:USTF0_20250923
["timestamp","ask_amount","ask_price","bid_price","bid_amount"]
[1758600885658,8.46,216.09,216.04,115.6]
[1758600885862,3.44016067,216.08,216.05,7.59]
[1758600886161,3.44016067,216.07,216.05,7.59]
[1758600886467,12.58,216.09,216.05,7.59]
[1758600886662,3.4401137,216.08,216.05,7.59]
[1758600886863,3.4401137,216.07,216.04,115.6]
[1758600887063,8.46,216.09,216.05,7.59]
[1758600887263,3.44008896,216.08,216.04,115.6]
[1758600887463,3.44008896,216.07,216.05,7.59]
[1758600887664,8.46,216.09,216.05,7.59]
[1758600887969,4.1619,216.05,216.0,115.56]
[1758600888166,7.56019181,216.04,216.0,123.15]
[1758600888368,8.2823,216.04,216.0,123.15]
[1758600889863,4.12,216.04,216.0,115.56]
[1758600890061,4.12,216.04,216.01,7.59]
[1758600892176,4.12,216.06,216.0,115.56]
[1758600892475,4.12,216.04,216.0,115.56]
[1758600892676,7.55939334,216.03,215.98,7.59]
[1758600892976,4.12,216.03,216.0,7.59]
[1758600893377,4.1619,216.05,215.99,99.07]
[1758600893577,7.5585159,216.04,216.0,7.59]
[1758600893879,3.4385159,216.03,216.0,7.59]
[1758600894177,7.5585159,216.03,216.0,7.59]
[1758600894369,4.12,216.03,216.0,7.59]
[1758600895783,8.2825,216.03,216.0,7.59]
[1758600898682,8.2825,216.03,215.99,68.46]
[1758600898883,8.2825,216.03,216.0,7.59]
[1758600900181,4.12,216.03,216.0,7.59]
[1758600900576,4.12,216.03,216.0,7.72]
[1758600900983,4.13,216.06,216.0,7.72]
[1758600901182,3.43399735,216.05,215.99,68.46]
[1758600901383,3.43399735,216.04,216.0,7.72]
[1758600901685,3.43399735,216.03,216.0,7.72]
[1758600901985,4.13,216.04,216.0,7.72]
[1758600902278,3.4356209,216.03,216.0,7.72]
[1758600902584,4.13,216.04,216.0,7.72]
[1758600902778,3.43457768,216.03,216.0,7.72]
[1758600902979,8.2923,216.03,216.0,7.72]
[1758600904280,3.43497562,216.02,216.0,7.72]
[1758600904492,8.2923,216.03,216.0,7.72]
[1758600904690,3.43521122,216.02,216.0,7.72]
[1758600904985,8.2923,216.03,216.0,7.72]
[1758600905286,3.43500689,216.02,216.0,7.72]
[1758600905487,3.43500689,216.01,216.0,7.72]
[1758600905885,3.43500689,216.02,216.0,7.72]
[1758600906182,3.43500689,216.01,215.96,68.94]
[1758600906386,8.2923,216.03,215.97,7.72]
[1758600906686,13.62802973,216.09,216.01,7.72]
[1758600906687,4.13,216.07,216.01,7.72]
[1758600906983,7.29800125,216.06,216.0,2.46665323]
[1758600907188,3.43578078,216.05,216.01,7.72]
[1758600907490,3.43578078,216.04,216.0,2.46665323]
[1758600907680,3.43578078,216.03,216.0,2.46665323]
[1758600907882,8.2917,216.07,216.01,7.72]
[1758600908081,7.29785899,216.06,216.0,2.46665323]
[1758600908284,3.4354298,216.05,216.01,7.72]
[1758600908485,3.4354298,216.04,216.0,2.46665323]
[1758600908681,3.4354298,216.03,216.0,2.46665323]
[1758600908882,4.13,216.06,216.01,7.72]
[1758600909187,7.30377832,216.05,216.0,2.46665323]
[1758600909390,3.43753069,216.04,216.01,7.72]
[1758600909588,3.43753069,216.03,216.01,7.72]
[1758600909787,3.43753069,216.02,216.01,7.72]
[1758600909987,3.43753069,216.02,215.95,7.72]
[1758600909988,4.13,216.01,215.95,7.72]
[1758600910185,7.30530814,216.0,215.93,7.72]
[1758600910488,4.1636,215.96,215.93,7.72]
[1758600910693,3.43753069,215.95,215.93,7.72]
[1758600912384,3.43753069,215.95,215.9,2.46665323]
[1758600912887,3.43753069,215.95,215.91,7.72]
[1758600913080,7.9986969,215.94,215.91,7.72]
[1758600913282,11.43622759,215.93,215.87,0.18201]
[1758600913482,11.43622759,215.92,215.88,7.72]
[1758600913684,4.13,215.9,215.87,0.18201]
[1758600913884,3.43753069,215.89,215.87,0.18201]
[1758600914490,3.43753069,215.88,215.87,0.18201]
[1758600915186,7.56753069,215.88,215.87,0.18201]
[1758600915391,7.56753069,215.88,215.8,4.1665]
[1758600915392,16.0523669,215.88,215.8,7.72]
[1758600915592,3.43753069,215.87,215.8,7.72]
[1758600915793,3.43753069,215.86,215.8,7.72]
[1758600915994,3.43753069,215.85,215.79,7.46]
[1758600916294,8.2952,215.88,215.79,7.46]
[1758600916494,8.2952,215.88,215.73,7.46]
[1758600916495,4.13,215.83,215.73,7.46]
[1758600916799,7.28362569,215.82,215.73,9.92665323]
[1758600916987,7.28362569,215.81,215.73,9.92665323]
[1758600917191,3.42950557,215.8,215.75,2.46665323]
[1758600917489,0.63276423,215.84,215.78,7.46]
[1758600917691,3.42349389,215.83,215.79,2.46665323]
[1758600917891,0.63276423,215.84,215.79,2.46665323]
[1758600918092,3.42334331,215.83,215.79,2.46665323]
[1758600918291,0.63276423,215.84,215.79,2.46665323]
[1758600918492,0.63276423,215.84,215.8,7.46]
[1758600918688,4.13,215.91,215.83,2.46665323]
[1758600918891,3.42075642,215.9,215.84,7.46]
[1758600919195,3.42075642,215.89,215.84,7.46]
[1758600919388,18.09490413,215.94,215.85,2.46665323]
[1758600919597,18.09490413,215.94,215.86,7.46]
[1758600919598,7.2641827,215.93,215.86,7.46]
[1758600919891,11.39387948,215.92,215.86,7.46]
[1758600920087,3.41992982,215.91,215.85,9.92665323]
[1758600920286,3.41992982,215.9,215.86,7.46]
[1758600920495,4.13,215.92,215.86,7.46]
[1758600920688,7.54887122,215.91,215.86,7.46]
[1758600920885,3.41887122,215.9,215.85,2.46665323]
[1758600921091,4.13,215.96,215.85,9.92665323]
[1758600921288,9.72838033,215.95,215.86,7.46]
[1758600921493,7.2617271,215.94,215.86,7.46]
[1758600921691,7.2617271,215.93,215.86,7.46]
[1758600921891,7.2617271,215.93,215.84,4.1658]
[1758600921892,3.41876264,215.92,215.88,7.46]
[1758600922099,3.41876264,215.92,215.87,2.46665323]
[1758600922100,17.87156973,215.96,215.87,9.92665323]
[1758600922391,3.4163495,215.95,215.88,7.46]
[1758600922595,3.4163495,215.94,215.88,7.46]
[1758600922798,17.87156973,215.96,215.88,7.46]
[1758600922996,3.41652673,215.95,215.89,2.46665323]
[1758600923198,3.41652673,215.94,215.88,9.92665323]
[1758600923501,17.87156973,215.96,215.88,9.92665323]
[1758600923693,3.41628748,215.95,215.88,9.92665323]
[1758600923897,3.41628748,215.94,215.88,9.92665323]
[1758600924097,17.87156973,215.96,215.88,9.92665323]
[1758600924299,3.41620107,215.95,215.88,9.92665323]
[1758600924592,7.44352282,215.94,215.88,9.92665323]
[1758600924799,4.02732175,215.93,215.89,7.46]
[1758600925002,4.13,215.95,215.88,2.46665323]
[1758600925205,7.4428672,215.94,215.88,2.46665323]
[1758600925404,11.57280067,215.93,215.88,9.92665323]
[1758600925604,4.13,215.93,215.88,9.92665323]
[1758600925903,4.02689739,215.92,215.89,7.46]
[1758600926204,4.13,215.94,215.86,2.46665323]
[1758600926407,7.44230032,215.93,215.86,2.46665323]
[1758600926601,4.13,215.94,215.87,7.46]
[1758600926904,11.57231381,215.93,215.89,7.46]
[1758600927099,11.57231381,215.93,215.88,2.46665323]
[1758600927100,4.13,215.96,215.88,9.92665323]
[1758600927302,7.44292944,215.95,215.91,7.46]
[1758600927600,4.1633,215.98,215.91,7.46]
[1758600927601,7.44292944,215.94,215.91,7.46]
[1758600927798,4.13,215.98,215.92,2.46665323]
[1758600927992,7.44361968,215.97,215.93,7.46]
[1758600928196,7.44397466,215.96,215.92,2.46665323]
[1758600928497,13.95881066,215.97,215.92,9.92665323]
[1758600928707,11.57442781,215.96,215.9,9.92665323]
[1758600928901,4.13,215.94,215.9,9.92665323]
[1758600929101,7.44353564,215.93,215.86,7.46]
[1758600929409,4.13,215.96,215.91,9.92665323]
[1758600929607,11.57412428,215.95,215.91,9.92665323]
[1758600929803,4.13,215.95,215.91,7.46]
[1758600930007,3.61752214,215.94,215.89,2.46665323]
[1758600930307,3.61752214,215.93,215.89,2.46665323]
[1758600930506,3.61752214,215.92,215.9,7.21]
[1758600930694,4.13,215.95,215.9,7.21]
[1758600930902,3.61904036,215.94,215.91,2.46665323]
[1758600931205,4.12,215.99,215.92,7.21]
[1758600931406,7.65186263,215.98,215.92,7.21]
[1758600931603,11.77186263,215.97,215.92,7.21]
[1758600931803,3.62069322,215.96,215.92,7.21]
[1758600932008,3.62069322,215.95,215.92,7.21]
[1758600932304,3.62069322,215.94,215.92,7.21]
[1758600932501,23.47437812,216.01,215.92,7.21]
[1758600932805,7.65348315,216.0,215.92,7.21]
[1758600933010,7.65348315,215.99,215.93,2.46665323]
[1758600933199,7.65348315,215.98,215.94,7.21]
[1758600933405,7.65348315,215.97,215.94,7.21]
[1758600933600,3.6214485,215.96,215.94,7.21]
[1758600933901,3.6214485,215.95,215.94,7.21]
[1758600934107,3.6214485,216.0,215.94,7.21]
[1758600934301,8.15288069,215.99,215.93,2.46665323]
[1758600934506,7.65432919,215.98,215.94,7.21]
[1758600934702,3.6214485,215.97,215.94,7.21]
[1758600934908,3.6214485,215.96,215.94,7.21]
[1758600935103,3.6214485,215.95,215.94,7.21]
[1758600935298,3.6214485,215.95,215.9,100.82]
[1758600935503,3.6214485,215.94,215.91,7.21]
[1758600935711,3.6214485,215.93,215.91,7.21]
[1758600935907,3.6214485,215.92,215.91,7.21]
[1758600939709,8.48,215.93,215.91,7.21]
[1758600939906,8.48,215.93,215.9,2.46665323]
[1758600940113,8.48,215.93,215.91,7.21]
[1758600940311,8.48,215.93,215.9,2.46665323]
[1758600940605,8.48,215.93,215.87,72.3]
[1758600940606,8.48,215.93,215.87,76.15870585]
[1758600940807,8.48,215.93,215.88,7.21]
[1758600942409,8.48,215.93,215.89,4.165]
[1758600943005,8.48,215.93,215.88,7.21]
[1758600943808,8.48,215.93,215.92,11.3744]
[1758600944114,9e-05,215.93,215.92,11.3744]
[1758600944316,9e-05,215.93,215.92,11.8344]
[1758600944714,9e-05,215.93,215.92,7.21]
[1758600945017,9e-05,215.93,215.92,122.61]
[1758600946314,9e-05,215.93,215.86,3.85870585]
[1758600946512,9e-05,215.93,215.87,115.4]
[1758600946815,10.88447066,215.92,215.88,7.21]
[1758600947109,3.62428356,215.91,215.89,7.21]
[1758600947311,9e-05,215.93,215.89,7.21]
[1758600947516,3.62590129,215.92,215.89,7.21]
[1758600947713,3.62590129,215.91,215.89,7.21]
[1758600948015,7.26009,215.93,215.89,7.21]
[1758600948216,3.62656508,215.92,215.89,7.21]
[1758600948416,3.62656508,215.91,215.89,7.21]
[1758600948613,7.26009,215.93,215.89,7.21]
[1758600948912,3.62806816,215.92,215.89,7.21]
[1758600949107,3.62806816,215.91,215.89,7.21]
[1758600949309,7.26009,215.93,215.89,7.21]
[1758600949508,3.6281466,215.92,215.89,7.21]
[1758600949710,3.6281466,215.91,215.89,7.21]
[1758600949911,7.26009,215.93,215.89,7.21]
[1758600950112,3.62815494,215.92,215.89,7.21]
[1758600950312,3.62815494,215.91,215.89,7.21]
[1758600950519,3.62815494,215.9,215.89,7.21]
[1758600950718,7.26009,215.93,215.89,7.21]
[1758600951019,3.62877242,215.92,215.89,7.21]
[1758600951216,7.26009,215.93,215.89,7.21]
[1758600951217,3.62877242,215.91,215.89,7.21]
[1758600951520,7.26009,215.93,215.89,7.21]
[1758600951821,3.62726566,215.92,215.89,7.21]
[1758600952118,3.62726566,215.91,215.89,7.21]
[1758600952319,3.62726566,215.9,215.89,7.21]
[1758600953323,7.26,215.89,215.79,7.21]
[1758600953520,7.26,215.87,215.8,115.36]
[1758600953712,7.66398962,215.86,215.8,115.36]
[1758600953911,3.62726566,215.85,215.81,7.21]
[1758600954112,3.62726566,215.84,215.81,7.21]
[1758600954311,3.62726566,215.83,215.81,7.21]
[1758600954611,7.26,215.87,215.81,7.21]
[1758600954812,14.88558478,215.86,215.81,7.21]
[1758600955016,3.62490284,215.85,215.81,7.21]
[1758600955221,3.62490284,215.84,215.81,7.21]
[1758600955518,3.62490284,215.83,215.81,7.21]
[1758600955716,7.26,215.87,215.81,7.21]
[1758600955916,3.62280305,215.86,215.81,7.21]
[1758600956214,7.26,215.91,215.81,7.21]
[1758600956416,7.62093311,215.9,215.82,7.21]
[1758600956625,3.62288862,215.89,215.82,7.21]
[1758600956920,3.62288862,215.88,215.84,7.21]
[1758600957121,9e-05,215.93,215.86,7.21]
[1758600957322,7.6130381,215.92,215.86,7.21]
[1758600957618,3.61447992,215.91,215.87,4.1652]
[1758600957819,3.61447992,215.9,215.88,7.21]
[1758600958020,3.61447992,215.89,215.88,7.21]
[1758600958617,9e-05,215.93,215.88,7.21]
[1758600958822,7.5608512,215.92,215.86,7.21]
[1758600959118,3.56263989,215.91,215.86,4.1655]
[1758600959421,9e-05,215.93,215.87,7.21]
[1758600959622,3.5629448,215.92,215.87,7.21]
[1758600959820,3.5629448,215.91,215.87,7.21]
[1758600960024,9e-05,215.93,215.87,7.21]
[1758600960216,3.54003691,215.92,215.86,4.1655]
[1758600960522,3.54003691,215.91,215.86,4.1655]
[1758600960725,9e-05,215.93,215.87,7.18]
[1758600960923,3.54059569,215.92,215.86,4.1655]
[1758600961222,3.54059569,215.91,215.86,4.1655]
[1758600961524,9e-05,215.93,215.87,7.18]
[1758600961724,3.54381634,215.92,215.86,4.1655]
[1758600961925,3.54381634,215.91,215.87,7.18]
[1758600962222,3.5463214,215.9,215.87,7.18]
[1758600962417,9e-05,215.93,215.86,11.3455]
[1758600962619,7.55301865,215.92,215.86,11.3455]
[1758600962820,3.54664195,215.91,215.86,4.1655]
[1758600963024,3.54664195,215.9,215.86,4.1655]
[1758600963224,3.54965823,215.89,215.87,7.18]
[1758600963418,3.54965823,215.89,215.86,4.1655]
[1758600963419,9e-05,215.93,215.89,7.18]
[1758600963722,9e-05,215.93,215.91,7.18]
[1758600964121,9e-05,215.93,215.92,11.03870585]
[1758600964316,12.45802973,216.04,215.93,7.18]
[1758600964519,7.40763165,216.03,215.93,7.18]
[1758600964720,7.40763165,216.02,215.93,7.18]
[1758600964920,3.54157773,216.01,215.95,3.85870585]
[1758600965231,3.54157773,216.0,215.97,7.18]
[1758600965420,12.45802973,216.08,215.99,4.163]
[1758600965621,8.49916628,216.07,215.99,8.02170585]
[1758600965827,7.34217374,216.06,215.99,8.02170585]
[1758600966024,7.34217374,216.05,215.99,8.02170585]
[1758600966225,7.34217374,216.04,216.0,7.18]
[1758600966428,7.29,216.02,216.01,115.36]
[1758600966725,10.76876322,216.02,216.01,115.36]
[1758600967027,10.76876322,216.02,215.96,7.18]
[1758600967230,10.76876322,216.01,215.97,115.34]
[1758600967525,3.47876322,216.0,215.97,115.34]
[1758600967725,7.29,216.01,215.97,115.34]
[1758600967925,3.4244697,216.0,215.97,115.34]
[1758600968125,3.4244697,215.99,215.97,115.34]
[1758600968325,7.29,216.01,215.97,115.34]
[1758600968531,3.42381434,216.0,215.97,122.52]
[1758600968720,7.29,216.01,215.97,122.52]
[1758600968920,3.42391595,216.0,215.97,122.52]
[1758600969122,7.29,216.06,215.97,122.52]
[1758600969323,3.42446977,216.05,215.97,122.52]
[1758600969522,7.29,216.06,215.97,122.52]
[1758600969523,3.42446977,216.04,215.97,122.52]
[1758600969826,3.42446977,216.03,215.97,122.52]
[1758600970023,3.42446977,216.02,215.97,115.34]
[1758600970226,7.29,216.06,215.98,7.18]
[1758600970423,3.42345127,216.05,215.99,3.85870585]
[1758600970628,3.42345127,216.04,216.0,115.32]
[1758600970830,7.29,216.09,216.01,7.18]
[1758600971029,7.20916519,216.08,216.02,3.85870585]
[1758600971224,3.41900978,216.07,216.03,7.18]
[1758600971424,3.41900978,216.06,216.03,7.18]
[1758600971627,7.29,216.12,216.05,3.85870585]
[1758600971821,7.20513206,216.11,216.07,7.18]
[1758600972024,7.29,216.12,216.07,7.18]
[1758600972025,3.41696754,216.1,216.07,7.18]
[1758600972226,3.41696754,216.09,216.07,7.18]
[1758600972526,7.29,216.15,216.03,7.18]
[1758600972825,4.1603,216.13,216.04,115.3]
[1758600973132,14.49013734,216.12,216.04,115.3]
[1758600973325,11.36093734,216.11,216.04,115.3]
[1758600973522,7.20013734,216.1,216.04,115.3]
[1758600973723,7.29,216.08,216.04,115.3]
[1758600974030,7.29,216.08,216.03,7.18]
[1758600974031,3.41481674,216.07,216.03,7.18]
[1758600974225,7.29,216.08,216.04,115.3]
[1758600974430,3.41263078,216.07,216.04,115.3]
[1758600974625,7.29,216.08,216.04,115.3]
[1758600974931,3.41173058,216.07,216.04,115.3]
[1758600975231,7.29,216.08,216.04,115.3]
[1758600975428,3.41186078,216.07,216.04,115.3]
[1758600975631,7.29,216.08,216.04,115.3]
[1758600975925,3.41193736,216.07,216.04,115.3]
[1758600976125,4.1602,216.14,216.05,7.41]
[1758600976329,7.19452257,216.13,216.05,7.41]
[1758600976528,10.82199424,216.12,216.05,7.41]
[1758600976826,3.41199424,216.11,216.05,7.41]
[1758600977026,3.41199424,216.1,216.05,7.41]
[1758600977232,3.41199424,216.09,216.05,7.41]
[1758600977435,7.41,216.12,216.04,122.71]
[1758600977625,3.41057163,216.11,216.04,122.71]
[1758600977932,3.41057163,216.1,216.04,122.71]
[1758600978226,11.5706,216.12,216.04,122.71]
[1758600978430,3.41203145,216.11,216.04,122.71]
[1758600978627,3.41203145,216.1,216.04,122.71]
[1758600978826,11.5706,216.12,216.04,122.71]
[1758600979031,3.40991405,216.11,216.04,122.71]
[1758600979227,3.40991405,216.1,216.04,122.71]
[1758600979433,11.5706,216.12,216.04,122.71]
[1758600979632,3.40987765,216.11,216.05,115.26]
[1758600979833,10.81987765,216.1,216.05,122.67]
[1758600980132,7.41,216.1,216.05,122.67]
[1758600980836,7.41,216.1,216.06,7.41]
[1758600981428,7.41,216.1,216.07,115.26]
[1758600982435,13.94579041,216.15,216.08,7.41]
[1758600982733,3.40996668,216.14,216.08,7.41]
[1758600982939,3.40996668,216.13,216.07,115.26]
[1758600983239,14.67867253,216.12,216.06,115.24]
[1758600983535,3.40996668,216.11,216.06,115.24]
[1758600983728,3.85870585,216.12,216.06,115.24]
[1758600983729,7.41,216.09,216.06,115.24]
[1758600986241,3.85870585,216.12,216.06,115.24]
[1758600986940,11.5708,216.11,216.06,122.65]
[1758600987742,7.56761113,216.1,216.06,7.41]
[1758600987942,10.81655963,216.09,216.03,115.22]
[1758600988240,7.41,216.09,216.03,115.22]
[1758600988844,4.1615,216.07,216.03,122.63]
[1758600989044,7.41,216.09,216.03,122.63]
[1758600989846,7.41,216.13,216.03,122.63]
[1758600990050,3.38750446,216.12,216.03,122.63]
[1758600990245,3.38750446,216.11,216.03,122.63]
[1758600990449,15.42920585,216.13,216.03,126.7922]
[1758600990646,3.38830229,216.12,216.03,126.7922]
[1758600990846,3.38830229,216.11,216.03,126.7922]
[1758600991043,11.26870585,216.13,216.04,7.52]
[1758600991354,3.38909051,216.12,216.04,7.52]
[1758600991650,4.1607,216.12,216.04,7.52]
[1758600992748,4.1602,216.14,216.06,7.52]
[1758600993248,4.1598,216.17,216.08,7.52]
[1758600993454,3.38923518,216.16,216.09,115.22]
[1758600993748,4.1598,216.17,216.09,115.22]
[1758600994056,3.38939931,216.16,216.09,115.22]
[1758600994352,3.39010179,216.15,216.09,115.22]
[1758600994546,4.1598,216.17,216.1,7.52]
[1758600994743,3.38967214,216.16,216.1,7.52]
[1758600995050,3.38967214,216.15,216.09,122.74]
[1758600995247,4.1598,216.17,216.09,122.74]
[1758600995450,3.38952965,216.16,216.09,122.74]
[1758600995648,3.38952965,216.15,216.09,115.22]
[1758600995853,10.53952965,216.15,216.09,115.22]
[1758600996052,10.53952965,216.14,216.09,122.74]
[1758600996258,7.15,216.14,216.1,7.52]
[1758600997855,11.3102,216.14,216.1,7.52]
[1758600998852,7.15,216.14,216.1,7.52]
[1758600999153,7.15,216.16,216.09,115.22]
[1758600999348,14.39205928,216.15,216.09,115.22]
[1758600999549,3.39318049,216.14,216.09,115.22]
[1758600999852,7.15,216.13,216.09,115.22]
[1758601000055,11.3103,216.13,216.09,122.74]
[1758601000254,3.39555763,216.12,216.09,122.74]
[1758601000553,7.15,216.12,216.07,115.2]
[1758601000746,7.15,216.12,216.07,122.72]
[1758601000953,7.15,216.12,216.08,7.52]
[1758601001760,11.3107,216.12,216.08,7.52]
[1758601002151,3.39824639,216.11,216.08,7.52]
[1758601002353,11.3107,216.12,216.08,7.52]
[1758601002551,3.39843348,216.11,216.08,7.52]
[1758601002759,11.3107,216.12,216.08,7.52]
[1758601002959,3.3984393,216.11,216.08,7.52]
[1758601003260,11.3107,216.12,216.08,7.52]
[1758601003446,3.4000945,216.11,216.08,7.52]
[1758601003651,3.40063996,216.1,216.08,7.52]
[1758601003847,11.3107,216.12,216.08,7.52]
[1758601004047,3.40064492,216.11,216.08,7.52]
[1758601004259,3.40064492,216.1,216.08,7.52]
[1758601004461,11.3107,216.12,216.08,7.52]
[1758601004648,7.26092796,216.11,216.08,7.52]
[1758601004852,3.40218547,216.1,216.08,7.52]
[1758601005050,3.40218547,216.09,216.08,7.52]
[1758601005253,4.1602,216.14,216.08,7.52]
[1758601005552,7.2612377,216.13,216.07,2.46606695]
[1758601005757,7.2612377,216.12,216.08,7.52]
[1758601006059,3.40233404,216.11,216.07,2.46606695]
[1758601006258,3.40233404,216.1,216.08,7.52]
[1758601006561,4.1602,216.14,216.08,7.52]
[1758601006762,7.26859017,216.13,216.07,2.46606695]
[1758601007065,4.1602,216.14,216.08,7.52]
[1758601007066,7.26859017,216.12,216.08,7.52]
[1758601007360,7.27195074,216.11,216.06,115.0358339]
[1758601007561,3.4057788,216.1,216.06,115.0358339]
[1758601007762,3.4057788,216.09,216.06,115.0358339]
[1758601007949,4.1602,216.14,216.07,7.52]
[1758601008152,7.27534328,216.13,216.07,7.52]
[1758601008362,3.40893516,216.12,216.11,7.52]
[1758601008556,23.23992829,216.22,216.13,7.52]
[1758601008759,7.28936635,216.21,216.13,7.52]
[1758601009063,7.28936635,216.2,216.13,7.52]
[1758601009255,7.28817643,216.19,216.13,7.52]
[1758601009461,7.28817643,216.18,216.12,125.16606695]
[1758601009758,10.56546493,216.17,216.13,7.52]
[1758601009962,3.41546493,216.16,216.13,7.52]
[1758601010255,3.41546493,216.15,216.12,117.64606695]
[1758601010457,3.41546493,216.14,216.13,7.52]
[1758601012867,7.15,216.25,216.13,7.98]
[1758601013160,7.15,216.23,216.2,2.46606695]
[1758601013362,4.1578,216.26,216.19,115.16]
[1758601013562,3.72532202,216.25,216.19,115.16]
[1758601013757,10.87532202,216.24,216.19,122.68]
[1758601014065,7.15,216.24,216.19,122.68]
[1758601014566,7.15,216.24,216.2,9.98606695]
[1758601015366,7.15,216.28,216.2,2.46606695]
[1758601015567,3.75158963,216.27,216.2,2.46606695]
[1758601015758,3.75158963,216.26,216.2,2.46606695]
[1758601016260,3.75158963,216.26,216.19,122.68]
[1758601016466,10.90158963,216.25,216.19,122.68]
[1758601016666,7.15,216.23,216.19,122.68]
[1758601017563,7.15,216.23,216.19,115.16]
[1758601017765,7.15,216.23,216.2,7.52]
[1758601017959,4.1586,216.23,216.11,4.1606]
[1758601018165,10.89756666,216.22,216.15,9.98606695]
[1758601018362,7.15,216.22,216.15,9.98606695]
[1758601018562,3.74660889,216.21,216.15,9.98606695]
[1758601018763,7.15,216.22,216.15,9.98606695]
[1758601018970,3.74594757,216.21,216.15,9.98606695]
[1758601019262,7.15,216.22,216.15,9.98606695]
[1758601019466,3.74561755,216.21,216.15,9.98606695]
[1758601019667,4.1589,216.21,216.15,9.98606695]
[1758601020865,4.1589,216.21,216.15,7.52]
[1758601021268,4.1592,216.19,216.13,115.12]
[1758601021469,9.90606695,216.2,216.13,115.12]
[1758601021868,14.06526695,216.2,216.13,115.12]
[1758601022269,9.90606695,216.25,216.16,2.46606695]
[1758601022468,3.74484545,216.24,216.16,2.46606695]
[1758601022671,9.90606695,216.25,216.17,7.06]
[1758601022873,3.74643754,216.24,216.17,7.06]
[1758601023075,9.90606695,216.25,216.17,7.06]
[1758601023468,7.9051049,216.24,216.17,7.06]
[1758601023670,6.21271898,216.23,216.17,7.06]
[1758601023970,3.74658268,216.22,216.14,2.46606695]
[1758601024168,4.159,216.2,216.14,115.1]
[1758601024576,4.159,216.2,216.15,7.06]
[1758601024875,10.80578893,216.19,216.15,7.06]
[1758601025076,3.36578893,216.18,216.15,7.06]
[1758601025375,7.44,216.19,216.15,7.06]
[1758601025670,7.52557163,216.18,216.12,115.1]
[1758601025876,3.36617163,216.17,216.13,7.06]
[1758601027376,10.80617163,216.17,216.13,7.06]
[1758601027570,7.44,216.17,216.13,7.06]
[1758601028878,3.36506115,216.16,216.13,7.06]
[1758601029079,7.44,216.17,216.13,7.06]
[1758601029276,3.36408389,216.16,216.13,7.06]
[1758601029473,2.46606695,216.19,216.09,352.20606695]
[1758601029674,2.46606695,216.19,215.95,259.0805]
[1758601029675,7.44,216.16,216.08,7.06]
[1758601029877,3.36461514,216.15,216.08,7.06]
[1758601030076,3.36461514,216.14,216.08,7.06]
[1758601030378,3.36461514,216.13,216.07,124.60606695]
[1758601030580,3.36461514,216.12,216.08,7.06]
[1758601030779,4.1603,216.14,216.08,7.06]
[1758601030979,3.36588384,216.13,216.07,117.54606695]
[1758601031178,3.36588384,216.12,216.08,7.06]
[1758601031379,4.1603,216.14,216.08,7.06]
[1758601031672,3.36712302,216.13,216.12,7.06]
[1758601031977,0.57390265,216.19,216.12,7.06]
[1758601032174,7.11480879,216.18,216.12,7.06]
[1758601032375,3.3674764,216.17,216.11,2.46606695]
[1758601032577,3.3674764,216.16,216.12,7.06]
[1758601032779,4.1594,216.18,216.11,9.52606695]
[1758601032971,3.36789766,216.17,216.11,9.52606695]
[1758601033171,3.36789766,216.16,216.12,7.06]